bitfinex-derivatives/quotes_BTCF0:USTF0_20210406
["timestamp","ask_amount","ask_price","bid_price","bid_amount"]
[1617705090703,0.35894919,58694.0,58693.0,1.37725655]
[1617705090920,0.35894919,58694.0,58693.0,4.83585655]
[1617705091111,0.35894919,58694.0,58693.0,3.83585655]
[1617705091308,0.35894919,58694.0,58693.0,4.83585655]
[1617705091993,0.35894037,58695.0,58693.0,4.83585655]
[1617705092193,0.35894037,58695.0,58693.0,3.83585655]
[1617705092794,0.6159309,58696.0,58694.0,1.12287]
[1617705092992,0.6159309,58696.0,58694.0,1.39287]
[1617705093192,0.6159309,58696.0,58694.0,0.39287]
[1617705093392,0.6159309,58696.0,58695.0,1.0]
[1617705093593,0.6159309,58696.0,58695.0,1.27]
[1617705093995,0.3589309,58696.0,58695.0,1.27]
[1617705094195,0.48703323,58697.0,58695.0,1.27]
[1617705094849,0.35893236,58698.0,58696.0,1.0]
[1617705094996,0.24953236,58698.0,58696.0,1.27]
[1617705095200,0.24953236,58698.0,58697.0,3.0216]
[1617705095400,0.1281,58707.0,58697.0,3.0216]
[1617705095401,0.1281,58707.0,58697.0,4.0216]
[1617705095402,0.43936112,58700.0,58697.0,4.0216]
[1617705095697,0.43936112,58700.0,58697.0,4.2916]
[1617705095896,0.43935508,58701.0,58697.0,3.2916]
[1617705096097,0.43935508,58701.0,58699.0,1.0]
[1617705096296,0.43935508,58701.0,58697.0,3.2916]
[1617705096495,0.43935508,58701.0,58700.0,1.27]
[1617705096907,0.62735352,58707.0,58700.0,1.0]
[1617705096908,0.43935199,58702.0,58700.0,1.0]
[1617705097196,0.43935199,58702.0,58700.0,1.27]
[1617705097396,0.43935199,58702.0,58701.0,1.0]
[1617705097596,0.43935199,58702.0,58701.0,0.37725655]
[1617705097800,0.62735477,58707.0,58701.0,1.37725655]
[1617705098097,0.43935592,58702.0,58701.0,1.37725655]
[1617705098396,0.43935592,58702.0,58701.0,0.37725655]
[1617705098597,0.1281,58707.0,58701.0,1.37725655]
[1617705098598,0.43902001,58703.0,58701.0,1.37725655]
[1617705098997,0.4390148,58705.0,58701.0,0.37725655]
[1617705099397,0.4390148,58705.0,58702.0,1.0]
[1617705099598,0.4390148,58705.0,58701.0,0.37725655]
[1617705099599,0.4390148,58705.0,58704.0,1.0]
[1617705100098,0.4390148,58705.0,58704.0,1.27]
[1617705100498,0.1281,58707.0,58704.0,1.27]
[1617705100999,0.1281,58707.0,58706.0,1.0]
[1617705101298,0.1281,58707.0,58706.0,0.27]
[1617705101503,0.1281,58707.0,58706.0,0.41247]
[1617705101999,0.56708449,58707.0,58706.0,0.41247]
[1617705102712,0.56708449,58707.0,58706.0,0.27]
[1617705102905,0.43898449,58707.0,58706.0,1.0]
[1617705103108,0.43898449,58707.0,58705.0,0.27]
[1617705103313,0.43898449,58707.0,58704.0,0.0508]
[1617705103314,0.43899118,58708.0,58706.0,0.27]
[1617705103513,0.43899118,58708.0,58703.0,1.0]
[1617705103701,0.10725655,58711.0,58707.0,0.10725655]
[1617705103907,0.49883921,58712.0,58707.0,0.37725655]
[1617705104109,0.43898986,58708.0,58707.0,0.10725655]
[1617705104505,0.43898986,58708.0,58707.0,0.37725655]
[1617705105615,0.1281,58720.0,58707.0,0.37725655]
[1617705105616,0.1281,58720.0,58707.0,0.52800655]
[1617705105618,0.43898761,58709.0,58707.0,0.52800655]
[1617705106306,0.44017118,58708.0,58707.0,0.52800655]
[1617705110610,0.44017118,58708.0,58707.0,0.37725655]
[1617705112711,0.49978486,58712.0,58707.0,0.37725655]
[1617705112911,0.50016031,58708.0,58707.0,0.37725655]
[1617705113424,0.43982328,58708.0,58707.0,0.37725655]
[1617705115716,0.54707983,58708.0,58707.0,0.37725655]
[1617705116115,0.43982328,58708.0,58707.0,0.37725655]
[1617705116317,0.50016139,58708.0,58707.0,0.37725655]
[1617705116716,0.43982328,58708.0,58707.0,0.37725655]
[1617705117415,0.43982328,58708.0,58707.0,0.42785655]
[1617705118416,0.43982328,58708.0,58707.0,4.94179655]
[1617705118816,0.44026941,58708.0,58707.0,4.94179655]
[1617705119217,0.42506941,58708.0,58707.0,4.94179655]
[1617705119419,0.37416941,58708.0,58707.0,4.94179655]
[1617705119918,0.32266941,58708.0,58707.0,4.94179655]
[1617705120117,0.32266941,58708.0,58707.0,3.94179655]
[1617705120417,0.32266941,58708.0,58707.0,4.94179655]
[1617705122018,0.32266941,58708.0,58707.0,4.89119655]
[1617705122218,0.31636941,58708.0,58707.0,4.89119655]
[1617705122420,0.50012471,58715.0,58707.0,4.89119655]
[1617705122821,0.50012471,58715.0,58713.0,1.0]
[1617705123022,0.50012471,58715.0,58714.0,1.0]
[1617705123222,0.50012471,58715.0,58714.0,1.27]
[1617705123424,0.1281,58720.0,58714.0,1.27]
[1617705123425,0.50011666,58716.0,58714.0,1.27]
[1617705123623,0.50011666,58716.0,58714.0,1.0]
[1617705123822,0.50010659,58717.0,58715.0,0.10725655]
[1617705124024,0.50010659,58717.0,58715.0,0.37725655]
[1617705124421,0.50010659,58717.0,58716.0,1.0]
[1617705124823,0.50010659,58717.0,58716.0,1.27]
[1617705125826,0.50010659,58717.0,58716.0,0.27]
[1617705126229,0.55070659,58717.0,58716.0,0.27]
[1617705126428,0.55070659,58717.0,58716.0,1.27]
[1617705126627,0.55070659,58717.0,58716.0,0.27]
[1617705126828,0.50010659,58717.0,58716.0,3.0757]
[1617705127428,0.50010659,58717.0,58716.0,4.0757]
[1617705127629,0.50000342,58718.0,58716.0,4.0757]
[1617705127831,0.50000342,58718.0,58716.0,3.0757]
[1617705128030,0.62809768,58720.0,58716.0,3.0757]
[1617705128531,0.62809768,58720.0,58717.0,1.0]
[1617705128830,0.55119122,58719.0,58716.0,4.0757]
[1617705129029,0.55119122,58719.0,58718.0,0.27]
[1617705129230,0.62809206,58720.0,58718.0,1.27]
[1617705129430,0.62809206,58720.0,58717.0,0.27]
[1617705129631,0.49999331,58719.0,58718.0,0.27]
[1617705130034,0.62809286,58720.0,58717.0,0.27]
[1617705130231,0.62809286,58720.0,58718.0,1.27]
[1617705130433,0.62809286,58720.0,58718.0,0.27]
[1617705130632,0.62809286,58720.0,58717.0,0.27]
[1617705130833,0.0517,58719.0,58716.0,2.8057]
[1617705131233,0.1281,58720.0,58718.0,1.0]
[1617705131635,0.1281,58720.0,58718.0,0.27]
[1617705131933,0.1281,58720.0,58717.0,0.27]
[1617705132235,0.1281,58720.0,58719.0,0.27]
[1617705132635,0.1281,58720.0,58717.0,1.27]
[1617705132935,0.1281,58720.0,58719.0,1.0]
[1617705133335,0.1281,58720.0,58719.0,1.15286]
[1617705133539,0.1281,58720.0,58719.0,0.42286]
[1617705134239,0.62807253,58720.0,58719.0,0.42286]
[1617705134440,0.62807253,58720.0,58719.0,0.27]
[1617705134740,0.62807253,58720.0,58717.0,0.27]
[1617705135239,0.10725655,58723.0,58719.0,0.27]
[1617705135609,2.5,58721.0,58717.0,0.27]
[1617705135840,1.70001204,58720.0,58719.0,0.27]
[1617705136142,0.50001991,58718.0,58706.0,0.10725655]
[1617705136742,0.50002891,58712.0,58707.0,0.27]
[1617705137160,0.50099647,58709.0,58707.0,0.27]
[1617705137642,0.50098835,58711.0,58707.0,0.27]
[1617705137841,0.10725655,58708.0,58707.0,0.27]
[1617705139343,0.60837967,58708.0,58707.0,0.27]
[1617705140448,0.60837967,58708.0,58707.0,0.3209]
[1617705140664,0.60837967,58708.0,58707.0,0.27]
[1617705141450,0.96922299,58708.0,58707.0,0.27]
[1617705143380,1.41023388,58708.0,58707.0,0.27]
[1617705143547,1.41023388,58708.0,58707.0,3.1771]
[1617705144348,1.47056943,58708.0,58707.0,3.1771]
[1617705145050,1.04939056,58708.0,58707.0,3.1771]
[1617705145950,0.54826744,58708.0,58707.0,3.1771]
[1617705146148,0.44101089,58708.0,58707.0,3.1771]
[1617705146865,0.44101089,58708.0,58707.0,4.1771]
[1617705147365,0.44094054,58709.0,58707.0,4.1771]
[1617705147849,0.44094054,58709.0,58707.0,3.1771]
[1617705148049,0.44094054,58709.0,58708.0,1.0]
[1617705148258,0.10725655,58717.0,58708.0,1.0]
[1617705148260,0.50162057,58712.0,58708.0,1.0]
[1617705148457,0.50162057,58712.0,58708.0,1.27]
[1617705148659,0.50162057,58712.0,58709.0,1.0513]
[1617705149060,0.50162057,58712.0,58710.0,0.27]
[1617705149652,0.44137402,58711.0,58710.0,0.27]
[1617705149851,0.44137402,58711.0,58708.0,0.27]
[1617705150052,0.9429325,58711.0,58708.0,0.27]
[1617705150368,0.10725655,58717.0,58710.0,0.27]
[1617705150369,0.5015584,58712.0,58710.0,0.27]
[1617705150561,0.5015584,58712.0,58709.0,0.15069]
[1617705150756,0.44137829,58711.0,58709.0,0.15069]
[1617705150956,0.44137829,58711.0,58709.0,0.36919]
[1617705151155,0.44137611,58710.0,58709.0,0.09919]
[1617705151561,0.44137611,58710.0,58709.0,0.27]
[1617705151769,0.44137611,58710.0,58709.0,1.27]
[1617705151962,0.44137611,58710.0,58709.0,1.0]
[1617705152164,0.44137611,58710.0,58708.0,0.27]
[1617705152361,0.44137611,58710.0,58709.0,1.27]
[1617705152584,0.44137611,58710.0,58709.0,1.09979]
[1617705152792,0.50155474,58714.0,58709.0,1.09979]
[1617705152971,0.50155474,58714.0,58709.0,0.36979]
[1617705153154,0.10725655,58717.0,58709.0,0.36979]
[1617705153155,0.44138057,58710.0,58709.0,0.36979]
[1617705154067,0.44138057,58710.0,58709.0,1.36979]
[1617705154256,0.44138057,58710.0,58709.0,0.36979]
[1617705154657,0.44138057,58710.0,58709.0,1.36979]
[1617705155561,0.44135714,58711.0,58709.0,1.66135847]
[1617705155961,0.50152494,58716.0,58714.0,1.0]
[1617705156362,0.50152494,58716.0,58715.0,0.27]
[1617705156762,0.50152494,58716.0,58713.0,1.0]
[1617705156962,0.94287887,58716.0,58714.0,0.27]
[1617705157163,0.94287887,58716.0,58714.0,1.27]
[1617705157363,0.94287887,58716.0,58714.0,1.0]
[1617705157364,0.44134481,58715.0,58714.0,1.0]
[1617705157764,0.44134481,58715.0,58709.0,0.09979]
[1617705157765,0.44134481,58715.0,58711.0,0.29156015]
[1617705157965,0.44134481,58715.0,58714.0,0.37725655]
[1617705158275,0.50150925,58717.0,58714.0,0.10725655]
[1617705158502,0.50150925,58717.0,58714.0,0.37725655]
[1617705158665,0.94378197,58715.0,58714.0,0.42785655]
[1617705159464,1.30526905,58715.0,58714.0,0.42785655]
[1617705160864,1.30526905,58715.0,58714.0,0.37725655]
[1617705161964,1.4125256,58715.0,58714.0,0.37725655]
[1617705162568,1.47284831,58715.0,58714.0,0.37725655]
[1617705162865,0.97084303,58715.0,58714.0,0.37725655]
[1617705163065,0.97084303,58715.0,58714.0,0.42755655]
[1617705163272,0.97059498,58715.0,58714.0,0.42755655]
[1617705163764,0.52906634,58715.0,58714.0,0.42755655]
[1617705164164,0.97058923,58715.0,58714.0,0.42755655]
[1617705165365,0.52906634,58715.0,58714.0,0.42755655]
[1617705165566,0.97059261,58715.0,58714.0,0.37725655]
[1617705167779,0.52906634,58715.0,58714.0,0.37725655]
[1617705168171,0.54878577,58715.0,58714.0,0.37725655]
[1617705171075,1.05068536,58715.0,58714.0,0.37725655]
[1617705174699,1.05068536,58715.0,58714.0,3.07365655]
[1617705174991,0.54878577,58715.0,58714.0,3.36602615]
[1617705177584,0.54878577,58715.0,58714.0,0.66962615]
[1617705179389,0.54878577,58715.0,58714.0,1.02059385]
[1617705180988,0.54878577,58715.0,58714.0,4.18519385]
[1617705182592,0.54878577,58715.0,58714.0,1.02059385]
[1617705184492,0.69721577,58715.0,58714.0,1.02059385]
[1617705184994,0.69721577,58715.0,58714.0,0.66962615]
[1617705185193,0.69721577,58715.0,58714.0,0.5623696]
[1617705185894,1.0584475,58715.0,58714.0,0.27]
[1617705186296,1.0584475,58715.0,58713.0,0.27]
[1617705186496,1.0584475,58715.0,58714.0,0.27]
[1617705186696,0.75735618,58715.0,58714.0,0.27]
[1617705186896,0.75735618,58715.0,58712.0,3.374]
[1617705186897,0.75735618,58715.0,58713.0,0.27]
[1617705187097,1.05832575,58715.0,58713.0,0.27]
[1617705187297,1.05832575,58715.0,58714.0,0.27]
[1617705187504,1.05832575,58715.0,58713.0,0.27]
[1617705187798,0.8629592,58714.0,58712.0,3.374]
[1617705188199,0.8629592,58714.0,58713.0,0.27]
[1617705188400,0.06032054,58714.0,58713.0,0.27]
[1617705188801,0.8629583,58714.0,58713.0,0.27]
[1617705189413,1.36457626,58714.0,58713.0,0.27]
[1617705193717,1.51976626,58714.0,58713.0,0.27]
[1617705195108,1.36457626,58714.0,58713.0,0.27]
[1617705195852,1.36457626,58714.0,58713.0,0.37542]
[1617705198213,1.36457626,58714.0,58713.0,0.48267655]
[1617705201314,1.36457626,58714.0,58713.0,0.37725655]
[1617705201731,0.50161796,58714.0,58713.0,0.37725655]
[1617705201915,1.60618084,58714.0,58713.0,0.37725655]
[1617705202715,1.60618084,58714.0,58713.0,0.50808655]
[1617705203017,1.79347779,58714.0,58713.0,0.50808655]
[1617705203416,0.80288063,58714.0,58713.0,0.50808655]
[1617705203716,1.84169911,58714.0,58713.0,0.50808655]
[1617705203916,1.84169911,58714.0,58713.0,0.37725655]
[1617705204615,1.84169911,58714.0,58713.0,0.51748655]
[1617705205016,1.84169911,58714.0,58713.0,3.02308655]
[1617705205917,1.60617807,58714.0,58713.0,3.02308655]
[1617705206318,1.60617807,58714.0,58713.0,0.51748655]
[1617705206518,1.60617807,58714.0,58713.0,0.37725655]
[1617705208221,1.71343462,58714.0,58713.0,0.37725655]
[1617705209046,1.95470525,58714.0,58713.0,0.37725655]
[1617705209453,1.71343462,58714.0,58713.0,0.37725655]
[1617705209830,1.95470568,58714.0,58713.0,0.37725655]
[1617705210324,2.51715601,58714.0,58713.0,0.37725655]
[1617705210725,2.40989946,58714.0,58713.0,4.05075655]
[1617705210927,2.40989946,58714.0,58713.0,5.05075655]
[1617705211226,1.84744913,58714.0,58713.0,5.05075655]
[1617705211625,1.84744913,58714.0,58713.0,5.34323995]
[1617705212245,1.10456011,58714.0,58713.0,5.34323995]
[1617705212945,1.34578379,58714.0,58713.0,5.34323995]
[1617705213247,1.10456011,58714.0,58713.0,5.34323995]
[1617705213749,1.10456011,58714.0,58713.0,4.34323995]
[1617705214746,1.10456011,58714.0,58713.0,5.34323995]
[1617705215534,1.10456011,58714.0,58713.0,5.69426197]
[1617705215935,1.34577865,58714.0,58713.0,5.69426197]
[1617705216434,1.10456011,58714.0,58713.0,5.69426197]
[1617705216634,1.10456011,58714.0,58713.0,4.69426197]
[1617705216837,1.10456011,58714.0,58713.0,5.34323995]
[1617705217340,1.60664625,58714.0,58713.0,5.34323995]
[1617705217738,1.60664625,58714.0,58713.0,4.34323995]
[1617705218139,1.60664625,58714.0,58713.0,5.34323995]
[1617705219240,1.10456011,58714.0,58713.0,5.34323995]
[1617705219641,1.84786645,58714.0,58713.0,5.34323995]
[1617705219941,1.10456011,58714.0,58713.0,5.34323995]
[1617705220342,1.10456011,58714.0,58713.0,5.05075655]
[1617705223846,0.66275656,58714.0,58713.0,5.05075655]
[1617705224445,1.10373711,58714.0,58713.0,5.05075655]
[1617705224949,0.66275656,58714.0,58713.0,5.34280878]
[1617705225448,0.90396515,58714.0,58713.0,5.34280878]
[1617705225746,0.66275656,58714.0,58713.0,5.34280878]
[1617705227548,0.66275656,58714.0,58713.0,5.54280878]
[1617705227951,0.66275656,58714.0,58713.0,5.34280878]
[1617705229056,0.66275656,58714.0,58713.0,2.71957174]
[1617705229263,0.66275656,58714.0,58713.0,3.71957174]
[1617705229452,0.30126267,58714.0,58713.0,3.71957174]
[1617705232155,0.30126267,58714.0,58713.0,3.16930878]
[1617705232156,0.00510192,58714.0,58713.0,3.16930878]
[1617705232355,0.00510192,58714.0,58713.0,1.66930878]
[1617705232556,0.30021007,58714.0,58713.0,1.37725655]
[1617705232956,0.66045194,58714.0,58713.0,1.37725655]
[1617705233796,0.66045194,58714.0,58713.0,0.37725655]
[1617705234859,1.10074469,58714.0,58713.0,0.37725655]
[1617705235858,1.10074469,58714.0,58713.0,1.37725655]
[1617705236563,0.66045194,58714.0,58713.0,1.37725655]
[1617705237662,0.66045194,58714.0,58713.0,0.37725655]
[1617705239066,0.66045194,58714.0,58713.0,1.37725655]
[1617705239768,0.66045194,58714.0,58713.0,0.37725655]
[1617705241574,0.90167472,58714.0,58713.0,0.37725655]
[1617705242071,0.66045194,58714.0,58713.0,0.37725655]
[1617705242475,1.34198491,58714.0,58713.0,0.37725655]
[1617705242671,1.34198491,58714.0,58713.0,3.39315655]
[1617705242871,1.10075817,58714.0,58713.0,3.39315655]
[1617705246474,1.20801472,58714.0,58713.0,3.39315655]
[1617705247193,1.44925008,58714.0,58713.0,3.39315655]
[1617705252691,1.44925008,58714.0,58713.0,0.37725655]
[1617705252887,1.44925008,58714.0,58713.0,0.27]
[1617705253189,1.44925008,58714.0,58703.0,0.27]
[1617705253386,1.9496899,58714.0,58703.0,0.27]
[1617705253590,1.9496899,58714.0,58713.0,0.27]
[1617705253787,0.10725655,58714.0,58713.0,0.27]
[1617705254000,0.10725655,58714.0,58698.0,0.27]
[1617705254199,2.31193604,58714.0,58697.0,0.27]
[1617705254387,2.20467949,58714.0,58706.0,0.10725655]
[1617705254587,0.50046358,58709.0,58706.0,0.10725655]
[1617705254988,1.10135653,58707.0,58706.0,0.10725655]
[1617705255187,1.26036653,58707.0,58706.0,0.10725655]
[1617705255386,1.26036653,58707.0,58706.0,0.37725655]
[1617705255989,1.5016319,58707.0,58706.0,0.37725655]
[1617705256388,1.60888845,58707.0,58706.0,0.37725655]
[1617705256890,2.10947655,58707.0,58706.0,0.37725655]
[1617705259995,2.10947655,58707.0,58706.0,3.40395655]
[1617705260494,1.60888845,58707.0,58706.0,3.40395655]
[1617705260694,1.3426219,58707.0,58706.0,3.40395655]
[1617705261394,1.10135653,58707.0,58706.0,3.40395655]
[1617705261795,1.34259274,58707.0,58706.0,3.40395655]
[1617705262294,1.10135653,58707.0,58706.0,3.40395655]
[1617705262695,1.34259351,58707.0,58706.0,0.37725655]
[1617705263101,1.10135653,58707.0,58706.0,0.37725655]
[1617705264296,1.3425939,58707.0,58706.0,0.37725655]
[1617705264797,1.10135653,58707.0,58706.0,0.37725655]
[1617705266599,1.34259472,58707.0,58706.0,0.37725655]
[1617705267000,1.10135653,58707.0,58706.0,0.37725655]
[1617705268608,1.60203263,58707.0,58706.0,0.37725655]
[1617705268810,0.24123684,58708.0,58706.0,0.37725655]
[1617705269004,1.34281053,58707.0,58706.0,0.37725655]
[1617705269605,1.10157175,58707.0,58706.0,0.37725655]
[1617705272307,2.10157175,58707.0,58706.0,0.37725655]
[1617705272508,2.10157175,58707.0,58706.0,0.27]
[1617705272911,2.9036485,58707.0,58700.0,0.10725655]
[1617705273108,1.9036485,58707.0,58700.0,0.10725655]
[1617705273308,0.2412754,58706.0,58701.0,0.27]
[1617705273508,0.2412754,58706.0,58700.0,0.10725655]
[1617705273909,2.16332742,58702.0,58701.0,0.27]
[1617705274610,2.27058397,58702.0,58701.0,0.27]
[1617705275210,2.51186846,58702.0,58701.0,0.27]
[1617705275412,2.51186846,58702.0,58701.0,0.26899465]
[1617705275611,2.27058397,58702.0,58701.0,0.26899465]
[1617705276112,2.51187155,58702.0,58701.0,0.26899465]
[1617705277114,1.95103855,58702.0,58701.0,0.26899465]
[1617705277413,1.95103855,58702.0,58701.0,3.11739465]
[1617705282020,1.95103855,58702.0,58701.0,0.26899465]
[1617705282950,2.08506855,58702.0,58701.0,0.26899465]
[1617705285124,1.95103855,58702.0,58701.0,0.26899465]
[1617705285841,1.95103855,58702.0,58701.0,0.2679893]
[1617705286327,2.51079849,58702.0,58701.0,0.2679893]
[1617705288332,0.34854413,58702.0,58701.0,0.2679893]
[1617705288730,2.50705795,58702.0,58701.0,0.2679893]
[1617705290932,5.70658766,58702.0,58701.0,0.2679893]
[1617705291131,6.06855599,58702.0,58701.0,0.2679893]
[1617705291329,6.26855599,58702.0,58666.0,1.0]
[1617705291538,7.14799021,58702.0,58655.0,0.9571]
[1617705291733,6.14799021,58702.0,58701.0,0.27]
[1617705291941,5.98752007,58702.0,58701.0,0.27]
[1617705292233,1.10989,58691.0,58662.0,1.0]
[1617705292430,0.10989,58691.0,58672.0,0.27]
[1617705292750,0.10989,58691.0,58669.0,1.0]
[1617705292751,0.56059919,58683.0,58676.0,0.10725655]
[1617705293231,0.56059829,58682.0,58677.0,0.27]
[1617705293640,1.60182505,58678.0,58677.0,0.27]
[1617705293832,1.75084505,58678.0,58677.0,0.27]
[1617705294631,2.09943785,58678.0,58677.0,0.27]
[1617705295032,1.8581016,58678.0,58677.0,0.27]
[1617705295334,2.09944098,58678.0,58677.0,0.27]
[1617705296236,2.09944098,58678.0,58677.0,3.2338]
[1617705297149,2.66006852,58678.0,58677.0,3.2338]
[1617705297345,2.66006852,58678.0,58677.0,0.27]
[1617705297634,2.66006852,58678.0,58677.0,0.26899438]
[1617705302138,2.51104852,58678.0,58677.0,0.37553438]
[1617705304141,2.51104852,58678.0,58677.0,1.37553438]
[1617705304542,2.40379197,58678.0,58677.0,0.37553438]
[1617705304942,1.84316443,58678.0,58677.0,4.34003438]
[1617705305242,1.60182505,58678.0,58677.0,4.34003438]
[1617705306848,0.10725655,58689.0,58677.0,4.34003438]
[1617705307144,1.59849788,58678.0,58677.0,4.34003438]
[1617705307343,1.59849788,58678.0,58677.0,3.34003438]
[1617705307543,1.56549788,58678.0,58677.0,4.34003438]
[1617705307751,1.54499788,58678.0,58677.0,4.34003438]
[1617705308043,1.78630144,58678.0,58677.0,4.34003438]
[1617705308243,1.78180144,58678.0,58677.0,4.34003438]
[1617705308445,1.03539226,58678.0,58677.0,4.34003438]
[1617705309045,1.77619846,58678.0,58677.0,4.34003438]
[1617705309447,1.53489321,58678.0,58677.0,4.34003438]
[1617705313249,1.50929321,58678.0,58677.0,4.34003438]
[1617705313450,1.7506007,58678.0,58677.0,4.34003438]
[1617705314051,1.50929321,58678.0,58677.0,4.34003438]
[1617705317558,1.46819321,58678.0,58677.0,4.34003438]
[1617705319861,1.46819321,58678.0,58677.0,1.37553438]
[1617705320560,1.46819321,58678.0,58677.0,0.37553438]
[1617705320762,2.0281106,58678.0,58677.0,0.26798885]
[1617705320962,2.13536715,58678.0,58677.0,0.26798885]
[1617705321369,2.37670077,58678.0,58677.0,0.26798885]
[1617705322062,2.37670077,58678.0,58677.0,1.26798885]
[1617705322365,2.37670077,58678.0,58677.0,3.75108885]
[1617705322562,2.37670077,58678.0,58677.0,2.75108885]
[1617705322762,2.37670077,58678.0,58677.0,3.75108885]
[1617705322962,2.26944422,58678.0,58677.0,3.75108885]
[1617705323666,2.0281106,58678.0,58677.0,3.75108885]
[1617705323965,2.0281106,58678.0,58677.0,2.75108885]
[1617705324568,2.0281106,58678.0,58677.0,3.75108885]
[1617705325175,2.0281106,58678.0,58677.0,2.75108885]
[1617705325373,2.0281106,58678.0,58677.0,3.75108885]
[1617705327976,2.0281106,58678.0,58677.0,2.75108885]
[1617705328276,2.1810906,58678.0,58677.0,2.75108885]
[1617705328976,2.42242462,58678.0,58677.0,2.75108885]
[1617705329378,2.1810906,58678.0,58677.0,2.75108885]
[1617705329877,2.42242737,58678.0,58677.0,2.75108885]
[1617705330277,2.1810906,58678.0,58677.0,2.75108885]
[1617705330579,2.1810906,58678.0,58677.0,0.26798885]
[1617705330799,2.4224184,58678.0,58677.0,0.26798885]
[1617705332178,3.12341284,58678.0,58677.0,0.26798885]
[1617705332695,3.12341284,58678.0,58677.0,0.26698329]
[1617705332978,2.4224184,58678.0,58677.0,0.26698329]
[1617705334680,3.12352178,58678.0,58677.0,0.26698329]
[1617705342295,2.4224184,58678.0,58677.0,1.26698329]
[1617705342594,2.2694384,58678.0,58677.0,4.13658329]
[1617705342996,2.2694384,58678.0,58677.0,4.13557775]
[1617705343194,2.0281106,58678.0,58677.0,4.13557775]
[1617705343394,2.0281106,58678.0,58677.0,3.13557775]
[1617705343793,2.0281106,58678.0,58677.0,4.13557775]
[1617705344094,2.0281106,58678.0,58677.0,1.26597775]
[1617705346296,2.0281106,58678.0,58677.0,0.26597775]
[1617705346628,2.1605406,58678.0,58677.0,0.26597775]
[1617705346797,2.86206003,58678.0,58677.0,0.26597775]
[1617705347900,3.10340331,58678.0,58677.0,0.26597775]
[1617705348303,3.98623357,58678.0,58677.0,0.26597775]
[1617705351406,3.10340331,58678.0,58677.0,0.26597775]
[1617705354015,3.10340331,58678.0,58677.0,0.26497216]
[1617705355911,2.97097331,58678.0,58677.0,0.26497216]
[1617705357111,2.72963003,58678.0,58677.0,0.26497216]
[1617705359011,2.87007003,58678.0,58677.0,0.26497216]
[1617705359612,3.11141152,58678.0,58677.0,0.26497216]
[1617705360413,2.97097152,58678.0,58677.0,0.26497216]
[1617705361014,2.72963003,58678.0,58677.0,0.26497216]
[1617705364620,2.72963003,58678.0,58677.0,0.26396662]
[1617705366754,2.85433003,58678.0,58677.0,0.26396662]
[1617705367326,3.09566902,58678.0,58677.0,0.26396662]
[1617705367937,2.97096902,58678.0,58677.0,0.26396662]
[1617705368547,2.72963003,58678.0,58677.0,0.26396662]
[1617705371629,3.61382252,58678.0,58677.0,0.26396662]
[1617705373728,3.8551672,58678.0,58677.0,0.26396662]
[1617705376631,3.8551672,58678.0,58677.0,0.26296104]
[1617705376632,3.61382252,58678.0,58677.0,0.26296104]
[1617705376831,3.71283252,58678.0,58677.0,0.26296104]
[1617705377531,3.95417668,58678.0,58677.0,0.26296104]
[1617705383139,3.95417668,58678.0,58677.0,2.90216104]
[1617705385742,3.85516668,58678.0,58677.0,2.90216104]
[1617705386345,3.61382252,58678.0,58677.0,2.90216104]
[1617705388345,3.61382252,58678.0,58677.0,0.26296104]
[1617705388746,6.08492252,58678.0,58677.0,0.26296104]
[1617705389261,6.68828015,58678.0,58677.0,0.26296104]
[1617705389654,6.68828015,58678.0,58677.0,0.26195545]
[1617705389945,6.7955367,58678.0,58677.0,0.369212]
[1617705390173,4.3244367,58678.0,58677.0,0.369212]
[1617705390753,3.96242212,58678.0,58677.0,0.369212]
[1617705391646,3.07822963,58678.0,58677.0,0.369212]
[1617705394550,3.96163898,58678.0,58677.0,0.369212]
[1617705394749,4.05857898,58678.0,58677.0,0.369212]
[1617705395650,4.05857898,58678.0,58677.0,0.26195545]
[1617705397152,5.06252101,58678.0,58677.0,0.26195545]
[1617705397654,4.05857898,58678.0,58677.0,0.26195545]
[1617705398357,4.05857898,58678.0,58677.0,3.67055545]
[1617705398784,3.96163898,58678.0,58677.0,3.67055545]
[1617705399573,3.96163898,58678.0,58677.0,3.78295545]
[1617705399763,3.96163898,58678.0,58677.0,3.78194982]
[1617705400665,3.96163898,58678.0,58677.0,3.66954982]
[1617705400889,4.10261898,58678.0,58677.0,3.66954982]
[1617705401980,4.10261898,58678.0,58677.0,4.92822637]
[1617705402084,3.96163898,58678.0,58677.0,4.92822637]
[1617705402396,3.07822963,58678.0,58677.0,5.12822637]
[1617705402885,3.44021606,58678.0,58677.0,5.12822637]
[1617705403366,2.83688658,58678.0,58677.0,5.12822637]
[1617705403773,3.07820582,58678.0,58677.0,5.12822637]
[1617705405068,2.37668639,58678.0,58677.0,5.12822637]
[1617705405467,3.0793671,58678.0,58677.0,5.12822637]
[1617705405667,3.0793671,58678.0,58677.0,4.92822637]
[1617705406868,2.9670671,58678.0,58677.0,4.92822637]
[1617705407070,2.26438639,58678.0,58677.0,4.92822637]
[1617705407469,2.23288639,58678.0,58677.0,4.92822637]
[1617705407771,2.15728639,58678.0,58677.0,4.92822637]
[1617705411896,2.15728639,58678.0,58677.0,0.51962637]
[1617705412106,2.15728639,58678.0,58677.0,0.36820637]
[1617705412480,2.85999189,58678.0,58677.0,0.26094982]
[1617705415185,3.74342723,58678.0,58677.0,0.26094982]
[1617705416984,3.74342723,58678.0,58677.0,0.25994415]
[1617705418388,2.85999189,58678.0,58677.0,0.25994415]
[1617705419287,3.74330755,58678.0,58677.0,0.25994415]
[1617705420289,2.85999189,58678.0,58677.0,0.25994415]
[1617705420589,2.85999189,58678.0,58677.0,4.24764415]
[1617705420791,2.85999189,58678.0,58677.0,4.44764415]
[1617705421191,2.15728639,58678.0,58677.0,4.24764415]
[1617705421793,2.15728639,58678.0,58677.0,3.24764415]
[1617705421996,2.85987179,58678.0,58677.0,4.24764415]
[1617705423403,2.85987179,58678.0,58677.0,0.25994415]
[1617705425908,3.74328047,58678.0,58677.0,0.25994415]
[1617705427202,3.74328047,58678.0,58677.0,0.25893848]
[1617705427403,2.85987179,58678.0,58677.0,0.25893848]
[1617705430406,3.74311831,58678.0,58677.0,2.92533848]
[1617705431308,2.85987179,58678.0,58677.0,2.92533848]
[1617705435307,2.85987179,58678.0,58677.0,0.25893848]
[1617705435718,5.97077179,58678.0,58677.0,0.25893848]
[1617705436207,7.77935975,58678.0,58677.0,0.25893848]
[1617705436711,4.10524756,58678.0,58677.0,0.25893848]
[1617705437509,3.74318258,58678.0,58677.0,0.25893848]
[1617705437907,3.74318258,58678.0,58677.0,0.25793277]